Cogmind - Beta 10.2 *** ADVENTURER MODE // 2020.12.26 @ 02:24:44 Player: Bobby Tables Result: Destroyed by G-47 Trooper with Particle Gun Performance ------------- Evolutions (2) 1000 Regions Visited (4) 800 Robots Destroyed (13) 65 Value Destroyed (442) 442 Prototype IDs (0) 0 Alien Tech Used (0) 0 Bonus (200) 200 TOTAL SCORE: 2507 Bonus ------- Pacifist 200 Cogmind --------- Core Integrity 0/550 Matter 86/300 Energy 100/100 System Corruption 2% Temperature Cool (18) Movement Core (100) Ox1 Location -8/Materials Parts ------- > --- POWER (3) -------- (None) > --- PROPULSION (3) --- (None) > --- UTILITY (3) ------ Small Storage Unit Visual Processing Unit > --- WEAPON (2) ------- (None) > --- INVENTORY (6) ---- Light Treads Aluminum Leg Compact Wheel Improved Heat Sink Targeting Computer Advanced Targeting Computer Peak State ------------ > --- POWER ------------ Ion Engine Ion Engine Nuclear Core > --- PROPULSION ------- Light Treads Carbon-fiber Leg Compact Wheel > --- UTILITY ---------- Small Storage Unit Visual Processing Unit Hacking Suite > --- WEAPON ----------- Autogun Datajack > --- INVENTORY -------- Light Treads Aluminum Leg Compact Wheel Advanced Targeting Computer Autogun [Rating: 19] Favorites ----------- Power Ion Engine Engine Ion Engine Power Core Light Nuclear Core Propulsion Compact Wheel Treads Light Treads Leg Aluminum Leg Wheel Compact Wheel Utility Small Storage Unit Storage Small Storage Unit Processor Visual Processing Unit Hackware Hacking Suite Weapon Light Assault Rifle Energy Gun Spread Laser Ballistic Gun Light Assault Rifle Special Melee Weapon Datajack Build | -11 -10 -10 -9 -8 ------- Run | Scr Mat Min Mat Mat Slots Evolved 4 | . . . 2 2 Power 2 | . . . 1 1 Propulsion 1 | . . . 1 . Utility 1 | . . . . 1 Weapon . | . . . . . Parts Attached 24 | 6 5 . 5 8 Power 4 | 1 . . 1 2 Engine 2 | 1 . . 1 . Core 2 | . . . . 2 Reactor . | . . . . . Propulsion 5 | 2 . . 1 2 Treads 1 | . . . 1 . Leg 3 | 1 . . . 2 Wheel 1 | 1 . . . . Hover . | . . . . . Flight . | . . . . . Utility 3 | 1 1 . . 1 Device . | . . . . . Storage 1 | 1 . . . . Processor 1 | . 1 . . . Hackware 1 | . . . . 1 Protection . | . . . . . Artifact . | . . . . . Weapon 12 | 2 4 . 3 3 Energy Gun 5 | 1 2 . 1 1 Energy Cannon . | . . . . . Ballistic Gun 6 | 1 2 . 1 2 Ballistic Cannon . | . . . . . Launcher . | . . . . . Special Weapon . | . . . . . Impact Weapon . | . . . . . Slashing Weapon . | . . . . . Piercing Weapon . | . . . . . Special Melee Weapon 1 | . . . 1 . Unidentified Prototypes . | . . . . . Parts Lost 16 | . . . 3 13 Power 4 | . . . . 4 Propulsion 4 | . . . . 4 Utility 1 | . . . . 1 Weapon 7 | . . . 3 4 Highest Loss Streak 8 | . . . 3 8 Average Slot Usage (%) 86 | . 96 100 96 54 Engine 14 | . 14 14 21 6 Treads 3 | . . . 10 3 Leg 10 | . 14 14 11 5 Wheel 10 | . 14 14 11 2 Storage 11 | . 14 14 11 9 Processor 11 | . 12 14 11 9 Hackware 1 | . . . . 4 Energy Gun 8 | . 13 14 9 . Ballistic Gun 10 | . 13 14 10 6 Naked Turns . | . . . . . Heaviest Build 25 | 12 13 13 18 25 Greatest Support 20 | 16 16 16 20 15 Greatest Overweight (x) 3 | 1 . . 1 3 Average Overweight (x) . | . . . . 1 Largest Inventory Capacity 6 | 6 6 6 6 6 Average Capacity 5 | 5 6 6 6 6 Most Carried 6 | 6 6 6 6 6 Average Carried 5 | 4 6 6 5 5 Final Capacity 6 | 6 6 6 6 6 Final Carried 6 | 6 6 6 6 6 Class Distribution -------------------- 92% | Mutant 7% | Hacker-Mutant Dominant Class ---------------- Mutant | -10/Materials Mutant | -10/Mines Mutant | -9/Materials Mutant | -8/Materials Resources | -11 -10 -10 -9 -8 ----------- Run | Scr Mat Min Mat Mat Matter Collected 299 | 180 . . 19 100 Remotely . | . . . . . Salvage Created 519 | . . . 137 382 Parts 33 | . . . 12 21 Haulers Intercepted 1 | . . . . 1 Recyclers Shooed 1 | . . . 1 . Parts Field Recycled . | . . . . . Retrieved Matter . | . . . . . Parts Self-Destructed . | . . . . . Prevented . | . . . . . Kills | -11 -10 -10 -9 -8 ------- Run | Scr Mat Min Mat Mat Combat Hostiles Destroyed 12 | . . . 6 6 Guns 11 | . . . 5 6 AOE 1 | . . . 1 . Classes Destroyed 6 | . . . 2 4 Hauler 1 | . . . . 1 Swarmer 3 | . . . 3 . Grunt 5 | . . . 3 2 Brawler 1 | . . . . 1 Sentry 2 | . . . . 2 Hunter 1 | . . . . 1 Best Kill Streak 3 | . . . 3 2 Combat Bots Only 3 | . . . 3 2 Max Kills in Single Turn 1 | . . . 1 1 Gunslinging . | . . . . . Exploded 1 | . . . 1 . Melee . | . . . . . Uniques/NPCs Destroyed . | . . . . . Combat | -11 -10 -10 -9 -8 -------- Run | Scr Mat Min Mat Mat Damage Taken 1877 | . . 47 494 1336 Core 628 | . . . 76 552 Absorbed by Shields . | . . . . . Core Remaining (%) 93 | 100 . 100 81 . Volleys Fired 60 | . . . 21 39 Largest 2 | . . . 1 2 Hottest 79 | . . . 65 79 Shots Fired 68 | . . . 21 47 Gun 68 | . . . 21 47 Cannon . | . . . . . Launcher . | . . . . . Special . | . . . . . Kinetic 40 | . . . 1 39 Thermal 23 | . . . 15 8 Explosive . | . . . . . Electromagnetic 5 | . . . 5 . Robot Hit Streak 11 | . . . 8 11 Robot Miss Streak 9 | . . . 9 2 Penetration Max . | . . . . . Secondary Targets . | . . . . . Shots Hit Robots 51 | . . . 17 34 Core Hits 33 | . . . 17 16 Critical Hits 1 | . . . . 1 Critical Kills . | . . . . . Critical Parts Destroyed 1 | . . . . 1 Melee Attacks . | . . . . . Impact . | . . . . . Slashing . | . . . . . Piercing . | . . . . . Sneak Attacks . | . . . . . Combat Hostiles . | . . . . . Follow-up Attacks . | . . . . . Damage Inflicted 813 | . . . 266 547 Guns 760 | . . . 213 547 Cannons . | . . . . . Explosions 53 | . . . 53 . Melee . | . . . . . Ramming . | . . . . . Kinetic 476 | . . . 18 458 Thermal 271 | . . . 182 89 Explosive . | . . . . . Electromagnetic 66 | . . . 66 . Impact . | . . . . . Slashing . | . . . . . Piercing . | . . . . . Highest Corruption 2 | . . . . 2 Average Corruption 2 | . . . . 2 Corruption Purged . | . . . . . Effects 4 | . . . . 4 Data Loss (minor) 2 | . . . . 2 Targeting Errors 2 | . . . . 2 Overload Shots . | . . . . . Overflow Damage . | . . . . . Projectiles . | . . . . . Explosions . | . . . . . Melee . | . . . . . Knockbacks . | . . . . . Impact . | . . . . . Kinetic . | . . . . . Secondary . | . . . . . Self-Inflicted Damage . | . . . . . Shots . | . . . . . Rammed . | . . . . . Targets Rammed . | . . . . . Kicked . | . . . . . Crushed . | . . . . . Highest Temperature 221 | . . . 221 94 Average Temperature 81 | . . . 115 29 Received Heat Transfer 777 | . . . 210 567 Effects 1 | . . . 1 . Interference 1 | . . . 1 . Siege Activations . | . . . . . Robots Corrupted . | . . . . . Combat Hostiles . | . . . . . Parts Fried . | . . . . . Impact Corruptions . | . . . . . Robots Melted . | . . . . . Combat Hostiles . | . . . . . Parts Melted . | . . . . . Heat Transferred 432 | . . . 210 222 Parts Sabotaged . | . . . . . Parts Stolen . | . . . . . Parts Stripped . | . . . . . Power Chain Reactions 1 | . . . 1 . Missiles Intercepted . | . . . . . Alert | -11 -10 -10 -9 -8 ------- Run | Scr Mat Min Mat Mat Peak Influence 143 | . . . 119 143 Initial 42 | . . . . 42 Average 28 | . . . 31 76 Maximum Alert Level . | . . . . . Low Security (%) 100 | 100 100 100 100 100 Level 1 . | . . . . . Level 2 . | . . . . . Level 3 . | . . . . . Level 4 . | . . . . . Level 5 . | . . . . . High Security . | . . . . . Max Security . | . . . . . Squads Dispatched . | . . . . . Investigation . | . . . . . Extermination . | . . . . . Reinforcement . | . . . . . Assault . | . . . . . Garrison . | . . . . . Intercept . | . . . . . Construction Impeded . | . . . . . Haulers Reinforced . | . . . . . Stealth | -11 -10 -10 -9 -8 --------- Run | Scr Mat Min Mat Mat Distress Signals . | . . . . . Communications Jammed . | . . . . . Distress Signals . | . . . . . Times Spotted 21 | . . 3 7 11 Peak Tracking Total 5 | . . 3 4 5 Tactical Retreats . | . . . . . Traps | -11 -10 -10 -9 -8 ------- Run | Scr Mat Min Mat Mat Traps Triggered 1 | . 1 . . . Indirectly . | . . . . . Trap Hack Attempts . | . . . . . Triggered . | . . . . . Disarmed . | . . . . . Reprogrammed . | . . . . . Reused . | . . . . . Traps Extracted . | . . . . . Installed . | . . . . . Triggered . | . . . . . Machines | -11 -10 -10 -9 -8 ---------- Run | Scr Mat Min Mat Mat Machines Disabled 2 | . . . 1 1 Max in Single Turn 1 | . . . 1 1 Machines Sabotaged . | . . . . . Garrisons Compromised . | . . . . . Overloaded Fab Kills . | . . . . . Fab Network Shutdowns . | . . . . . Hacking | -11 -10 -10 -9 -8 --------- Run | Scr Mat Min Mat Mat Machines Accessed 2 | . 1 . . 1 Terminals 1 | . 1 . . . Fabricators . | . . . . . Repair Stations . | . . . . . Recycling Units 1 | . . . . 1 Scanalyzers . | . . . . . Garrison Access . | . . . . . Total Hacks 4 | . 2 . . 2 Successful 3 | . 1 . . 2 Failed 1 | . 1 . . . Catastrophic 1 | . 1 . . . Database Lockouts . | . . . . . Manual . | . . . . . Terminals 2 | . 2 . . . Fabricators . | . . . . . Repair Stations . | . . . . . Recycling Units 2 | . . . . 2 Scanalyzers . | . . . . . Garrison Access . | . . . . . Terminal Hacks 1 | . 1 . . . Record 1 | . 1 . . . Fabricator Hacks . | . . . . . Repair Station Hacks . | . . . . . Recycling Unit Hacks 2 | . . . . 2 Report Inventory 2 | . . . . 2 Scanalyzer . | . . . . . Garrison Access Hacks . | . . . . . Unauthorized Hacks . | . . . . . Terminals . | . . . . . Fabricators . | . . . . . Repair Stations . | . . . . . Recycling Units . | . . . . . Scanalyzers . | . . . . . Garrison Access . | . . . . . Data Cores Recovered . | . . . . . Used . | . . . . . Hacking Detections 2 | . 1 . . 1 Full Trace Events 1 | . 1 . . . Feedback Events . | . . . . . Feedback Blocked . | . . . . . Robot Schematics Acquired . | . . . . . Robots Built . | . . . . . Matter . | . . . . . Time . | . . . . . Total Robot Build Rating . | . . . . . Part Schematics Acquired . | . . . . . Parts Built . | . . . . . Matter . | . . . . . Time . | . . . . . Total Part Build Rating . | . . . . . Parts Repaired . | . . . . . Time . | . . . . . Parts Recycled . | . . . . . Recycled Matter . | . . . . . Retrieved Matter . | . . . . . Retrieved Components . | . . . . . Parts Scanalyzed . | . . . . . Part Schematics Acquired . | . . . . . Parts Damaged . | . . . . . Bothacking | -11 -10 -10 -9 -8 ------------ Run | Scr Mat Min Mat Mat Used RIF Installer . | . . . . . Robots Hacked . | . . . . . Non-combat . | . . . . . Combat . | . . . . . Robot Hacks Applied . | . . . . . Relay Couplers Released . | . . . . . Robots Rewired . | . . . . . Allies Hacked . | . . . . . Hacks Repelled . | . . . . . Allies | -11 -10 -10 -9 -8 -------- Run | Scr Mat Min Mat Mat Total Allies . | . . . . . Largest Group . | . . . . . Highest-Rated Group . | . . . . . Highest-Rated Ally . | . . . . . Total Orders . | . . . . . Ally Attacks . | . . . . . Total Damage . | . . . . . Kills . | . . . . . Allies Corrupted . | . . . . . Allies Melted . | . . . . . Intel | -11 -10 -10 -9 -8 ------- Run | Scr Mat Min Mat Mat Robot Analysis Total . | . . . . . Derelict Logs Recovered . | . . . . . Drone Launches . | . . . . . Drone Recoveries . | . . . . . Exploration | -11 -10 -10 -9 -8 ------------- Run | Scr Mat Min Mat Mat Turns Passed 1198 | 68 159 328 340 303 Spaces Moved 912 | 57 153 329 203 170 Core 112 | 15 . . . 97 Treads 9 | . . . 9 . Legs 244 | 8 . . 163 73 Wheels 547 | 34 153 329 31 . Hover . | . . . . . Flight . | . . . . . Fastest Speed 50 | 50 100 100 100 100 Average Speed 113 | 94 100 100 142 123 Slowest Speed 200 | 150 100 100 160 200 Overloaded Moves . | . . . . . Propulsion Burnouts . | . . . . . Robots Hopped . | . . . . . Cave-ins Triggered . | . . . . . Exploration Rate (%) 20 | 4 23 48 19 8 Regions Visited 4 Branch Regions 1 Pre-discovered Areas . | . . . . . Known Exits Taken . | . . . . . Unknown Exits Taken 4 | 1 1 1 1 . Scrap Searched . | . . . . . Spaces Dug . | . . . . . Terrain Destroyed . | . . . . . Melee . | . . . . . Projectile . | . . . . . AOE . | . . . . . Terrain Rammed . | . . . . . Walls Destroyed . | . . . . . Machines Disabled . | . . . . . Actions | -11 -10 -10 -9 -8 --------- Run | Scr Mat Min Mat Mat Total 1008 | 68 159 328 232 221 Wait . | . . . . . Move 908 | 56 152 328 202 170 Hop . | . . . . . Pick Up 12 | 6 . . 4 2 Fast Attach 14 | 6 3 . 1 4 Attach 6 | . . . 4 2 Detach . | . . . . . Swap 4 | . 2 . . 2 Drop 4 | . 2 . . 2 Fire 60 | . . . 21 39 Melee . | . . . . . Ram . | . . . . . Kick . | . . . . . Crush . | . . . . . Escape Stasis . | . . . . . Rewire . | . . . . . Trap . | . . . . . Miscellaneous . | . . . . . Route ------- -11/Scrapyard -10/Materials -10/Mines -9/Materials -8/Materials History --------- Turn | Location | Event 13 | -11/Scrapyard | Discovered new exit (range 16) 69 | -11/Scrapyard | Entered Materials 199 | -10/Materials | Discovered new exit (range 18) 228 | -10/Materials | Entered Mines 305 | -10/Mines | Build established: Mutant 329 | -10/Mines | A weapon hastily lodged in a ceiling crevice suddenly fell to the ground 540 | -10/Mines | Discovered new exit (range 12) 556 | -10/Mines | Entered Materials 556 | -9/Materials | Evolved 2 slots: Power x1, Propulsion x1 735 | -9/Materials | Discovered new exit (range 15) 878 | -9/Materials | Lost 3 parts (3w) 896 | -9/Materials | Entered another Materials area 896 | -8/Materials | Evolved 2 slots: Power x1, Utility x1 1065 | -8/Materials | Lost 8 parts (3p3n2w) 1106 | -8/Materials | Core integrity fell below 50% 1140 | -8/Materials | Lost 5 parts (1p1n1u2w) 1172 | -8/Materials | Core integrity fell below 20% 1199 | -8/Materials | Destroyed by G-47 Trooper with Particle Gun Last Messages --------------- Beam Rifle destroyed. Penetrated by Slug. K-01 Serf collects debris. Penetrated by Slug. Lgt. Nuclear Core destroyed. K-01 Serf collects debris. Carbon-fiber Leg destroyed. K-01 Serf collects debris. R-06 Scavenger collects Lgt. Treads. System corrupted: Hvy. Assault Rifle targeting data glitched. Penetrated by Slug. Hvy. Assault Rifle destroyed. K-01 Serf collects debris. R-06 Scavenger collects Autogun. K-01 Serf collects debris. R-06 Scavenger collects Heat Sink. K-01 Serf collects debris. System corrupted: Component data lost. Slug penetrates Wall. K-01 Serf collects debris. Map ----- +----------------------------------------------------+ | ????????????????????????????????????????? | | ????????????????????????????????????????? | | ????????????????????????????????????????? | | ????????????????????????????????????????? | | ????????????????????????????????????????? | | ????????????????????????????????????????? | | ????????????????????????????????????????? | | ????????????????????????????????????????? | | ????????????????????????????????????????? | | ????????????????????????????????????????? | | ??????????????????""????????????????????? | | ?????????????????" "????????????????????? | | ?????????????????" "????????????????????? | | ????????????????? ????????????????????? | | ????????????????? ????????????????????? | | ????????????????##a###??????????????????? | | ????????????????# ???????????????????? | | ????????????????# *=#???????????????????? | | ????????????????# ==#???????????????????? | | ????????#???????# %#???????????????????? | | ????????# ??????# =#???????????????????? | | ????????# ??????# =#???????????????????? | | ? ""????# ?????## ak##??????????????????? | | # """"??# ######r #?????????###??????? | | # # =##### ??? | | # + g @ % w%* ??? | | # [[ # hg k %##### ??? | | ????????### #### % #??????????????????? | | ??????????# #??### ###??????????????????? | | ??????????# #????#+#????????????????????? | | ??????????# #???? = ????????????????????? | | ????####### #???# ???????????????????? | | ????# #???# ??????????????????? | | ????# ##### #???# ?????????????????? | | ?####/##### #???########????????????????? | | ?# ] # #???????????????????????????? | | ?# # #???????????????????????????? | | ?# # #########???????????????????? | | ?# # # """ #???????????????????? | | ?# + # "Y" #???????????????????? | | ?# # # #???????????????????? | | ?#= # + #???????????????????? | | ?# # # #???????????????????? | | ?# # # #???????????????????? | | ?########## # #???????????????????? | | ??????????# #######???????????????????? | | ??????????# #?????????????????????????? | | ??????????# #?????????????????????????? | | ??????????# #?????????????????????????? | | ??????????# #?????????????????????????? | +----------------------------------------------------+ Best States ------------- Heat Dissipation 31 Energy Generation 19 Energy Capacity 540 Matter Stores 220 Matter Capacity 300 Sight Range 18 Terrain Scan Density 10 Resistance: KI 20 Resistance: TH 20 Resistance: EX 20 Resistance: EM 20 Resistance: I 20 Resistance: S 20 Resistance: P 20 Evasion (%) 50 Recoil Reduction 1 Offensive Hacking 20 Item Schematics ----------------- None Robot Schematics ------------------ None Fabricated ------------ Nothing Alien Tech Used ----------------- None Achievements -------------- Loot Pinata Storm Trooper Challenges ------------ None Game ------ Seed LaserThermalCannon Manual? 0 Play Time 00:17:26 Cumulative 1.2 hours Start 2020.12.26 @ 02:10:01 End 2020.12.26 @ 02:24:44 Sessions 1 Manual Loads 0 Difficulty Adventurer Special Mode None Game No. 6 Rogue 2 Adventurer 4 Explorer 0 Win Type - Total 0 Types 0/0/0/0/0/0/0/0/0 Lore% 0 Gallery% 4 Achievement% 3 Wizard Run 0 Options --------- ASCII 0 Keyboard 0 Movement Mouse Keybinds 0 Fullscreen 1 Font 18/SmallcapsGlow Map View 76x50 Tactical HUD 0 Map Filters NONE Filters NONE Steam 1 RUN: 2fbde068-29b9-44f9-9f9f-4baf179f8eca